fUSD/lending_fUSD_20260614
["ID","MTS","AMOUNT","RATE_DAILY","PERIOD"]
[425033974,1781437851000,-8085.8,0.00029589,8]
[425033968,1781437851000,-500.0,0.00029589,8]
[425033966,1781437851000,-1004.12,0.00029589,8]
[425033970,1781437851000,-174.87693639,0.00029589,8]
[425033971,1781437851000,-578.37,0.00029589,8]
[425033972,1781437851000,-1139.19,0.00029589,8]
[425033976,1781437851000,-500.0,0.00029589,8]
[425033983,1781437851000,-500.0,0.00029589,8]
[425033967,1781437851000,-500.0,0.00029589,8]
[425033981,1781437851000,-500.0,0.00029589,8]
[425033982,1781437851000,-1815.68,0.00029589,8]
[425033975,1781437851000,-516.79,0.00029589,8]
[425033978,1781437851000,-1467.58,0.00029589,8]
[425033980,1781437851000,-500.0,0.00029589,8]
[425033984,1781437851000,-929.75,0.00029589,8]
[425033986,1781437851000,-575.72,0.00029589,8]
[425033987,1781437851000,-500.0,0.00029589,8]
[425033985,1781437851000,-500.0,0.00029589,8]
[425033989,1781437851000,-872.27,0.00029589,8]
[425033940,1781437851000,-1287.79,0.00029589,8]
[425033977,1781437851000,-500.0,0.00029589,8]
[425033964,1781437851000,-674.46,0.00029589,8]
[425033979,1781437851000,-4916.71,0.00029589,8]
[425033961,1781437851000,-500.0,0.00029589,8]
[425033937,1781437851000,-500.0,0.00029589,8]
[425033963,1781437851000,-648.1,0.00029589,8]
[425033941,1781437851000,-2799.41,0.00029589,8]
[425033942,1781437851000,-592.15,0.00029589,8]
[425033948,1781437851000,-544.77,0.00029589,8]
[425033952,1781437851000,-527.3,0.00029589,8]
[425033943,1781437851000,-655.79,0.00029589,8]
[425033951,1781437851000,-824.3,0.00029589,8]
[425033946,1781437851000,-1310.78,0.00029589,8]
[425033950,1781437851000,-569.25,0.00029589,8]
[425033944,1781437851000,-815.14,0.00029589,8]
[425033945,1781437851000,-1754.68,0.00029589,8]
[425033988,1781437851000,-500.0,0.00029589,8]
[425033947,1781437851000,-1116.71,0.00029589,8]
[425033949,1781437851000,-500.0,0.00029589,8]
[425033957,1781437851000,-730.77,0.00029589,8]
[425033958,1781437851000,-500.0,0.00029589,8]
[425033956,1781437851000,-500.0,0.00029589,8]
[425033962,1781437851000,-1133.72,0.00029589,8]
[425033955,1781437851000,-621.52,0.00029589,8]
[425033960,1781437851000,-210.34314678,0.00029589,8]
[425033954,1781437851000,-518.86,0.00029589,8]
[425033953,1781437851000,-500.0,0.00029589,8]
[425033959,1781437851000,-924.83,0.00029589,8]
[425034020,1781437852000,-500.0,0.00029589,8]
[425034028,1781437852000,-1091.59,0.00029589,8]
[425034018,1781437852000,-500.0,0.00029589,8]
[425034025,1781437852000,-19214.29,0.00029589,8]
[425034021,1781437852000,-1839.7,0.00029589,8]
[425034017,1781437852000,-2921.71,0.00029589,8]
[425034026,1781437852000,-500.0,0.00029589,8]
[425034024,1781437852000,-500.0,0.00029589,8]
[425034022,1781437852000,-500.0,0.00029589,8]
[425034036,1781437852000,-2696.04,0.00029589,8]
[425034037,1781437852000,-1317.99,0.00029589,8]
[425034034,1781437852000,-3355.96,0.00029589,8]
[425034029,1781437852000,-328.47121381,0.00029589,8]
[425034032,1781437852000,-2155.6,0.00029589,8]
[425034035,1781437852000,-1797.01,0.00029589,8]
[425034030,1781437852000,-892.62,0.00029589,8]
[425034033,1781437852000,-631.02,0.00029589,8]
[425034038,1781437852000,-884.1,0.00029589,8]
[425034039,1781437852000,-4777.45,0.00029589,8]
[425034040,1781437852000,-868.68,0.00029589,8]
[425034042,1781437852000,-1508.58,0.00029589,8]
[425034044,1781437852000,-960.98,0.00029589,8]
[425034023,1781437852000,-500.0,0.00029589,8]
[425034027,1781437852000,-612.48,0.00029589,8]
[425034041,1781437852000,-500.0,0.00029589,8]
[425033994,1781437852000,-571.46,0.00029589,8]
[425034011,1781437852000,-2256.66,0.00029589,8]
[425034043,1781437852000,-500.0,0.00029589,8]
[425033992,1781437852000,-7344.99,0.00029589,8]
[425033993,1781437852000,-500.0,0.00029589,8]
[425033991,1781437852000,-504.09,0.00029589,8]
[425033990,1781437852000,-1241.94,0.00029589,8]
[425033996,1781437852000,-500.0,0.00029589,8]
[425033995,1781437852000,-984.25,0.00029589,8]
[425033999,1781437852000,-260.58612436,0.00029589,8]
[425033997,1781437852000,-500.0,0.00029589,8]
[425034004,1781437852000,-2614.38,0.00029589,8]
[425033998,1781437852000,-2160.35,0.00029589,8]
[425034003,1781437852000,-1503.8,0.00029589,8]
[425034001,1781437852000,-612.61,0.00029589,8]
[425034000,1781437852000,-1003.72,0.00029589,8]
[425034002,1781437852000,-2257.06,0.00029589,8]
[425034005,1781437852000,-2361.19,0.00029589,8]
[425034007,1781437852000,-528.83,0.00029589,8]
[425034006,1781437852000,-500.0,0.00029589,8]
[425034009,1781437852000,-2098.88,0.00029589,8]
[425034012,1781437852000,-4552.31,0.00029589,8]
[425034008,1781437852000,-2554.65,0.00029589,8]
[425034014,1781437852000,-488.04753943,0.00029589,8]
[425034013,1781437852000,-1758.65,0.00029589,8]
[425034010,1781437852000,-500.0,0.00029589,8]
[425034015,1781437852000,-740.84,0.00029589,8]
[425034016,1781437852000,-622.72,0.00029589,8]
[425034045,1781437852000,-500.0,0.00029589,8]
[425034019,1781437852000,-500.0,0.00029589,8]
[425034048,1781437852000,-500.0,0.00029589,8]
[425034076,1781437852000,-1138.72,0.00029589,8]
[425034077,1781437852000,-500.0,0.00029589,8]
[425034078,1781437852000,-500.0,0.00029589,8]
[425034084,1781437852000,-880.56,0.00029589,8]
[425034079,1781437852000,-883.05,0.00029589,8]
[425034081,1781437852000,-853.29,0.00029589,8]
[425034082,1781437852000,-1905.43,0.00029589,8]
[425034080,1781437852000,-796.66,0.00029589,8]
[425034083,1781437852000,-500.0,0.00029589,8]
[425034087,1781437852000,-560.93,0.00029589,8]
[425034086,1781437852000,-1663.65,0.00029589,8]
[425034088,1781437852000,-500.0,0.00029589,8]
[425034089,1781437852000,-500.0,0.00029589,8]
[425034090,1781437852000,-500.0,0.00029589,8]
[425034092,1781437852000,-500.0,0.00029589,2]
[425034091,1781437852000,-1070.85,0.00029589,8]
[425034093,1781437852000,-500.0,0.00029589,8]
[425034095,1781437852000,-2172.3,0.00029589,8]
[425034094,1781437852000,-1339.46,0.00029589,8]
[425034096,1781437852000,-500.0,0.00029589,8]
[425034098,1781437852000,-637.78,0.00029589,8]
[425034097,1781437852000,-1287.86,0.00029589,8]
[425034099,1781437852000,-1152.52,0.00029589,8]
[425034100,1781437852000,-572.46,0.00029589,8]
[425034049,1781437852000,-152.12046224,0.00029589,8]
[425034074,1781437852000,-2462.41,0.00029589,8]
[425034085,1781437852000,-673.61,0.00029589,8]
[425034031,1781437852000,-1722.32,0.00029589,8]
[425034069,1781437852000,-866.43,0.00029589,8]
[425034046,1781437852000,-500.0,0.00029589,8]
[425034051,1781437852000,-1077.21,0.00029589,8]
[425034061,1781437852000,-703.26,0.00029589,8]
[425034050,1781437852000,-691.55,0.00029589,8]
[425034053,1781437852000,-1022.94,0.00029589,8]
[425034055,1781437852000,-500.0,0.00029589,8]
[425034052,1781437852000,-500.0,0.00029589,8]
[425034059,1781437852000,-500.0,0.00029589,8]
[425034056,1781437852000,-565.76,0.00029589,8]
[425034054,1781437852000,-892.97,0.00029589,8]
[425034075,1781437852000,-500.0,0.00029589,8]
[425034057,1781437852000,-500.0,0.00029589,8]
[425034047,1781437852000,-3565.89,0.00029589,8]
[425034060,1781437852000,-1089.95,0.00029589,8]
[425034070,1781437852000,-667.3,0.00029589,8]
[425034071,1781437852000,-4683.5,0.00029589,8]
[425034072,1781437852000,-500.0,0.00029589,8]
[425034058,1781437852000,-500.0,0.00029589,8]
[425034062,1781437852000,-500.0,0.00029589,8]
[425034065,1781437852000,-500.0,0.00029589,8]
[425034068,1781437852000,-1029.1,0.00029589,8]
[425034064,1781437852000,-1416.97,0.00029589,8]
[425034066,1781437852000,-907.8,0.00029589,8]
[425034063,1781437852000,-500.0,0.00029589,8]
[425034073,1781437852000,-500.0,0.00029589,8]
[425034067,1781437852000,-500.0,0.00029589,8]
[425034138,1781437853000,-712.69,0.00029589,8]
[425034132,1781437853000,-500.0,0.00029589,8]
[425034139,1781437853000,-500.0,0.00029589,8]
[425034136,1781437853000,-574.62,0.00029589,8]
[425034129,1781437853000,-500.0,0.00029589,8]
[425034133,1781437853000,-695.51,0.00029589,8]
[425034135,1781437853000,-500.0,0.00029589,8]
[425034134,1781437853000,-992.72,0.00029589,8]
[425034131,1781437853000,-500.0,0.00029589,8]
[425034140,1781437853000,-1643.27,0.00029589,8]
[425034141,1781437853000,-541.36,0.00029589,8]
[425034137,1781437853000,-502.17,0.00029589,8]
[425034147,1781437853000,-877.33,0.00029589,8]
[425034142,1781437853000,-706.89,0.00029589,8]
[425034144,1781437853000,-3097.47,0.00029589,8]
[425034145,1781437853000,-595.59,0.00029589,8]
[425034146,1781437853000,-854.75,0.00029589,8]
[425034150,1781437853000,-2027.83,0.00029589,8]
[425034148,1781437853000,-1553.49,0.00029589,8]
[425034151,1781437853000,-500.0,0.00029589,8]
[425034149,1781437853000,-500.0,0.00029589,8]
[425034152,1781437853000,-1310.37,0.00029589,8]
[425034154,1781437853000,-1045.55,0.00029589,8]
[425034128,1781437853000,-1163.17,0.00029589,8]
[425034153,1781437853000,-695.05,0.00029589,8]
[425034130,1781437853000,-1076.43,0.00029589,8]
[425034116,1781437853000,-1003.32,0.00029589,8]
[425034127,1781437853000,-1071.25,0.00029589,8]
[425034101,1781437853000,-500.0,0.00029589,8]
[425034102,1781437853000,-690.07,0.00029589,8]
[425034104,1781437853000,-4620.02,0.00029589,8]
[425034103,1781437853000,-638.97,0.00029589,8]
[425034105,1781437853000,-1028.97,0.00029589,8]
[425034106,1781437853000,-500.0,0.00029589,8]
[425034107,1781437853000,-500.0,0.00029589,8]
[425034115,1781437853000,-442.55616894,0.00029589,8]
[425034113,1781437853000,-500.0,0.00029589,8]
[425034111,1781437853000,-469.35360519,0.00029589,8]
[425034117,1781437853000,-3187.96,0.00029589,8]
[425034118,1781437853000,-500.0,0.00029589,8]
[425034114,1781437853000,-500.0,0.00029589,8]
[425034157,1781437853000,-500.0,0.00029589,8]
[425034112,1781437853000,-1434.49,0.00029589,8]
[425034108,1781437853000,-1818.3,0.00029589,2]
[425034110,1781437853000,-1978.69,0.00029589,8]
[425034109,1781437853000,-500.0,0.00029589,8]
[425034119,1781437853000,-1161.38,0.00029589,8]
[425034120,1781437853000,-2542.25,0.00029589,8]
[425034121,1781437853000,-500.0,0.00029589,8]
[425034123,1781437853000,-1866.12,0.00029589,8]
[425034122,1781437853000,-511.17,0.00029589,8]
[425034124,1781437853000,-1881.88,0.00029589,8]
[425034125,1781437853000,-770.01,0.00029589,8]
[425034126,1781437853000,-719.38,0.00029589,8]
[425034156,1781437853000,-500.0,0.00029589,8]
[425034143,1781437853000,-500.2,0.00029589,8]
[425034155,1781437853000,-743.15,0.00029589,8]
[425034181,1781437853000,-500.0,0.00029589,8]
[425034180,1781437853000,-430.52885135,0.00029589,8]
[425034191,1781437853000,-549.74185085,0.00029589,8]
[425034190,1781437853000,-757.3,0.00029589,8]
[425034194,1781437853000,-1973.87,0.00029589,8]
[425034196,1781437853000,-973.6,0.00029589,8]
[425034198,1781437853000,-2149.5,0.00029589,8]
[425034192,1781437853000,-1412.97,0.00029589,8]
[425034197,1781437853000,-1150.74,0.00029589,8]
[425034193,1781437853000,-500.0,0.00029589,8]
[425034195,1781437853000,-500.0,0.00029589,8]
[425034199,1781437853000,-1525.12,0.00029589,8]
[425034185,1781437853000,-687.87,0.00029589,8]
[425034200,1781437853000,-2801.1,0.00029589,8]
[425034206,1781437853000,-4432.91,0.00029589,8]
[425034203,1781437853000,-1568.61,0.00029589,8]
[425034209,1781437853000,-500.0,0.00029589,8]
[425034205,1781437853000,-2519.65,0.00029589,8]
[425034208,1781437853000,-500.0,0.00029589,8]
[425034207,1781437853000,-781.1,0.00029589,8]
[425034210,1781437853000,-702.57,0.00029589,8]
[425034204,1781437853000,-500.0,0.00029589,8]
[425034202,1781437853000,-561.28,0.00029589,8]
[425034211,1781437853000,-541.05,0.00029589,8]
[425034213,1781437853000,-1615.08,0.00029589,8]
[425034159,1781437853000,-500.0,0.00029589,8]
[425034201,1781437853000,-926.31,0.00029589,8]
[425034182,1781437853000,-500.0,0.00029589,8]
[425034212,1781437853000,-558.23,0.00029589,8]
[425034187,1781437853000,-1220.53,0.00029589,8]
[425034183,1781437853000,-2098.27,0.00029589,8]
[425034163,1781437853000,-500.0,0.00029589,8]
[425034158,1781437853000,-500.0,0.00029589,8]
[425034161,1781437853000,-1209.78,0.00029589,8]
[425034165,1781437853000,-500.0,0.00029589,8]
[425034160,1781437853000,-585.03,0.00029589,8]
[425034162,1781437853000,-1250.29,0.00029589,8]
[425034167,1781437853000,-500.0,0.00029589,8]
[425034177,1781437853000,-2011.8,0.00029589,8]
[425034178,1781437853000,-500.13,0.00029589,8]
[425034166,1781437853000,-2093.51,0.00029589,8]
[425034169,1781437853000,-1338.92,0.00029589,8]
[425034168,1781437853000,-2496.95,0.00029589,8]
[425034164,1781437853000,-386.03170321,0.00029589,8]
[425034170,1781437853000,-5405.22,0.00029589,8]
[425034172,1781437853000,-15553.71,0.00029589,8]
[425034175,1781437853000,-954.15,0.00029589,8]
[425034171,1781437853000,-300.54131899,0.00029589,8]
[425034173,1781437853000,-2075.95,0.00029589,8]
[425034174,1781437853000,-500.0,0.00029589,8]
[425034176,1781437853000,-500.0,0.00029589,8]
[425034179,1781437853000,-500.0,0.00029589,8]
[425034186,1781437853000,-5753.69,0.00029589,8]
[425034189,1781437853000,-4250.44,0.00029589,8]
[425034188,1781437853000,-1020.63,0.00029589,8]
[425034184,1781437853000,-500.0,0.00029589,8]
[425034249,1781437854000,-648.84,0.00029589,8]
[425034251,1781437854000,-500.0,0.00029589,8]
[425034255,1781437854000,-1653.09,0.00029589,8]
[425034247,1781437854000,-1242.61,0.00029589,8]
[425034243,1781437854000,-544.28,0.00029589,8]
[425034250,1781437854000,-501.45,0.00029589,8]
[425034245,1781437854000,-500.0,0.00029589,8]
[425034246,1781437854000,-1442.04,0.00029589,8]
[425034244,1781437854000,-500.0,0.00029589,8]
[425034248,1781437854000,-604.1,0.00029589,8]
[425034253,1781437854000,-1192.0,0.00029589,8]
[425034254,1781437854000,-589.39,0.00029589,8]
[425034258,1781437854000,-745.59,0.00029589,8]
[425034257,1781437854000,-1755.46,0.00029589,8]
[425034267,1781437854000,-500.0,0.00029589,2]
[425034256,1781437854000,-517.73803881,0.00029589,8]
[425034266,1781437854000,-500.0,0.00029589,8]
[425034260,1781437854000,-1848.1,0.00029589,8]
[425034259,1781437854000,-500.0,0.00029589,8]
[425034262,1781437854000,-500.0,0.00029589,8]
[425034264,1781437854000,-8632.18,0.00029589,8]
[425034261,1781437854000,-500.0,0.00029589,8]
[425034263,1781437854000,-1960.39,0.00029589,8]
[425034265,1781437854000,-500.0,0.00029589,8]
[425034240,1781437854000,-1615.64,0.00029589,8]
[425034252,1781437854000,-963.02,0.00029589,8]
[425034237,1781437854000,-500.0,0.00029589,8]
[425034216,1781437854000,-608.87,0.00029589,8]
[425034239,1781437854000,-500.0,0.00029589,8]
[425034268,1781437854000,-970.25,0.00029589,8]
[425034214,1781437854000,-837.03,0.00029589,8]
[425034218,1781437854000,-3102.37,0.00029589,8]
[425034219,1781437854000,-889.97,0.00029589,8]
[425034220,1781437854000,-547.62,0.00029589,8]
[425034215,1781437854000,-1477.01,0.00029589,8]
[425034222,1781437854000,-955.0,0.00029589,8]
[425034221,1781437854000,-883.55,0.00029589,8]
[425034217,1781437854000,-500.0,0.00029589,8]
[425034223,1781437854000,-500.0,0.00029589,8]
[425034227,1781437854000,-500.0,0.00029589,8]
[425034228,1781437854000,-809.36,0.00029589,8]
[425034226,1781437854000,-2375.22,0.00029589,8]
[425034225,1781437854000,-1270.21,0.00029589,8]
[425034224,1781437854000,-510.37,0.00029589,8]
[425034233,1781437854000,-500.0,0.00029589,8]
[425034230,1781437854000,-775.96,0.00029589,8]
[425034231,1781437854000,-2352.69,0.00029589,8]
[425034229,1781437854000,-500.0,0.00029589,8]
[425034232,1781437854000,-3220.54,0.00029589,8]
[425034235,1781437854000,-500.0,0.00029589,8]
[425034234,1781437854000,-1007.92,0.00029589,8]
[425034236,1781437854000,-500.0,0.00029589,8]
[425034242,1781437854000,-1295.96,0.00029589,8]
[425034241,1781437854000,-1354.7,0.00029589,8]
[425034238,1781437854000,-500.0,0.00029589,8]
[425034272,1781437854000,-2716.9,0.00029589,8]
[425034312,1781437854000,-500.0,0.00029589,8]
[425034273,1781437854000,-1963.38,0.00029589,8]
[425034299,1781437854000,-716.44,0.00029589,8]
[425034303,1781437854000,-500.0,0.00029589,8]
[425034302,1781437854000,-2892.7,0.00029589,8]
[425034306,1781437854000,-2198.4,0.00029589,8]
[425034304,1781437854000,-508.83,0.00029589,8]
[425034307,1781437854000,-8613.63,0.00029589,8]
[425034309,1781437854000,-500.0,0.00029589,8]
[425034308,1781437854000,-500.0,0.00029589,8]
[425034305,1781437854000,-1595.47,0.00029589,8]
[425034310,1781437854000,-886.74,0.00029589,8]
[425034311,1781437854000,-510.76,0.00029589,8]
[425034313,1781437854000,-801.47,0.00029589,8]
[425034315,1781437854000,-549.5,0.00029589,8]
[425034314,1781437854000,-500.0,0.00029589,8]
[425034316,1781437854000,-523.91,0.00029589,8]
[425034323,1781437854000,-1894.75,0.00029589,8]
[425034319,1781437854000,-500.0,0.00029589,8]
[425034320,1781437854000,-1178.17,0.00029589,8]
[425034324,1781437854000,-500.0,0.00029589,8]
[425034317,1781437854000,-562.41,0.00029589,8]
[425034318,1781437854000,-1336.68,0.00029589,8]
[425034321,1781437854000,-500.0,0.00029589,8]
[425034322,1781437854000,-1469.64,0.00029589,8]
[425034326,1781437854000,-1248.75,0.00029589,8]
[425034271,1781437854000,-1325.24,0.00029589,8]
[425034300,1781437854000,-1745.08,0.00029589,8]
[425034298,1781437854000,-500.0,0.00029589,8]
[425034325,1781437854000,-1682.51,0.00029589,8]
[425034291,1781437854000,-500.0,0.00029589,8]
[425034301,1781437854000,-500.0,0.00029589,8]
[425034274,1781437854000,-806.44,0.00029589,8]
[425034269,1781437854000,-2347.19,0.00029589,8]
[425034270,1781437854000,-500.0,0.00029589,8]
[425034278,1781437854000,-908.38,0.00029589,8]
[425034276,1781437854000,-500.0,0.00029589,8]
[425034277,1781437854000,-548.55,0.00029589,8]
[425034289,1781437854000,-500.0,0.00029589,8]
[425034281,1781437854000,-500.0,0.00029589,8]
[425034279,1781437854000,-500.0,0.00029589,8]
[425034282,1781437854000,-500.0,0.00029589,8]
[425034280,1781437854000,-954.76,0.00029589,8]
[425034275,1781437854000,-642.76,0.00029589,8]
[425034284,1781437854000,-2040.85,0.00029589,8]
[425034283,1781437854000,-2791.61,0.00029589,8]
[425034296,1781437854000,-500.0,0.00029589,8]
[425034295,1781437854000,-1034.44,0.00029589,8]
[425034293,1781437854000,-1475.92,0.00029589,8]
[425034297,1781437854000,-843.81,0.00029589,8]
[425034294,1781437854000,-814.65,0.00029589,8]
[425034290,1781437854000,-500.0,0.00029589,8]
[425034287,1781437854000,-1253.4,0.00029589,8]
[425034288,1781437854000,-1521.7,0.00029589,8]
[425034285,1781437854000,-500.0,0.00029589,8]
[425034286,1781437854000,-6868.92,0.00029589,8]
[425034292,1781437854000,-1226.97,0.00029589,8]
[425034363,1781437855000,-500.0,0.00029589,8]
[425034370,1781437855000,-500.0,0.00029589,8]
[425034367,1781437855000,-1646.14,0.00029589,8]
[425034366,1781437855000,-500.0,0.00029589,8]
[425034357,1781437855000,-988.49,0.00029589,8]
[425034361,1781437855000,-713.95,0.00029589,8]
[425034360,1781437855000,-500.0,0.00029589,8]
[425034359,1781437855000,-1072.21,0.00029589,8]
[425034364,1781437855000,-887.59,0.00029589,8]
[425034358,1781437855000,-502.46,0.00029589,8]
[425034362,1781437855000,-500.0,0.00029589,8]
[425034365,1781437855000,-1049.64,0.00029589,8]
[425034374,1781437855000,-500.0,0.00029589,8]
[425034369,1781437855000,-753.68,0.00029589,8]
[425034372,1781437855000,-500.0,0.00029589,8]
[425034373,1781437855000,-500.0,0.00029589,8]
[425034371,1781437855000,-3350.75,0.00029589,8]
[425034376,1781437855000,-769.05,0.00029589,8]
[425034375,1781437855000,-1628.84,0.00029589,8]
[425034379,1781437855000,-500.0,0.00029589,8]
[425034377,1781437855000,-500.0,0.00029589,8]
[425034380,1781437855000,-500.0,0.00029589,8]
[425034378,1781437855000,-377.31209958,0.00029589,2]
[425034352,1781437855000,-3284.49,0.00029589,8]
[425034381,1781437855000,-500.0,0.00029589,8]
[425034368,1781437855000,-500.0,0.00029589,8]
[425034353,1781437855000,-754.48,0.00029589,8]
[425034344,1781437855000,-1887.39,0.00029589,8]
[425034350,1781437855000,-505.32,0.00029589,8]
[425034382,1781437855000,-1714.07,0.00029589,8]
[425034336,1781437855000,-500.0,0.00029589,8]
[425034329,1781437855000,-645.68,0.00029589,8]
[425034328,1781437855000,-599.6,0.00029589,8]
[425034330,1781437855000,-767.47,0.00029589,8]
[425034333,1781437855000,-500.0,0.00029589,8]
[425034332,1781437855000,-500.0,0.00029589,8]
[425034331,1781437855000,-500.0,0.00029589,8]
[425034334,1781437855000,-500.0,0.00029589,8]
[425034335,1781437855000,-500.0,0.00029589,8]
[425034337,1781437855000,-500.0,0.00029589,8]
[425034339,1781437855000,-1809.73,0.00029589,8]
[425034340,1781437855000,-500.0,0.00029589,8]
[425034341,1781437855000,-500.0,0.00029589,8]
[425034342,1781437855000,-500.0,0.00029589,8]
[425034345,1781437855000,-1045.91,0.00029589,8]
[425034346,1781437855000,-909.03,0.00029589,8]
[425034343,1781437855000,-1112.89,0.00029589,8]
[425034347,1781437855000,-500.0,0.00029589,8]
[425034338,1781437855000,-500.0,0.00029589,8]
[425034349,1781437855000,-784.59,0.00029589,8]
[425034351,1781437855000,-705.42,0.00029589,8]
[425034348,1781437855000,-1873.07,0.00029589,8]
[425034356,1781437855000,-618.47,0.00029589,8]
[425034355,1781437855000,-1539.7,0.00029589,8]
[425034354,1781437855000,-2440.94,0.00029589,8]
[425034327,1781437855000,-500.0,0.00029589,8]
[425034384,1781437855000,-694.06,0.00029589,8]
[425034388,1781437855000,-500.0,0.00029589,8]
[425034415,1781437855000,-796.79,0.00029589,8]
[425034418,1781437855000,-922.3,0.00029589,8]
[425034428,1781437855000,-1065.92,0.00029589,8]
[425034417,1781437855000,-1568.53,0.00029589,8]
[425034422,1781437855000,-500.0,0.00029589,8]
[425034423,1781437855000,-500.0,0.00029589,8]
[425034425,1781437855000,-500.0,0.00029589,8]
[425034419,1781437855000,-500.0,0.00029589,8]
[425034424,1781437855000,-500.0,0.00029589,8]
[425034420,1781437855000,-639.3653032,0.00029589,8]
[425034421,1781437855000,-500.0,0.00029589,8]
[425034426,1781437855000,-552.92,0.00029589,8]
[425034412,1781437855000,-1203.27,0.00029589,8]
[425034427,1781437855000,-500.0,0.00029589,8]
[425034440,1781437855000,-500.0,0.00029589,8]
[425034435,1781437855000,-520.94,0.00029589,8]
[425034429,1781437855000,-500.0,0.00029589,8]
[425034434,1781437855000,-500.0,0.00029589,8]
[425034436,1781437855000,-735.99,0.00029589,8]
[425034432,1781437855000,-500.0,0.00029589,8]
[425034431,1781437855000,-500.0,0.00029589,8]
[425034437,1781437855000,-2417.92,0.00029589,8]
[425034439,1781437855000,-500.0,0.00029589,8]
[425034438,1781437855000,-737.24,0.00029589,8]
[425034433,1781437855000,-1671.31,0.00029589,8]
[425034386,1781437855000,-1937.98,0.00029589,8]
[425034430,1781437855000,-500.0,0.00029589,8]
[425034413,1781437855000,-500.0,0.00029589,8]
[425034441,1781437855000,-500.0,0.00029589,8]
[425034406,1781437855000,-2097.15,0.00029589,8]
[425034414,1781437855000,-500.0,0.00029589,8]
[425034390,1781437855000,-554.92,0.00029589,8]
[425034389,1781437855000,-513.29,0.00029589,8]
[425034393,1781437855000,-815.3,0.00029589,8]
[425034392,1781437855000,-509.47,0.00029589,8]
[425034385,1781437855000,-353.89800763,0.00029589,8]
[425034387,1781437855000,-1471.77,0.00029589,8]
[425034391,1781437855000,-1045.1,0.00029589,8]
[425034395,1781437855000,-500.0,0.00029589,8]
[425034403,1781437855000,-500.0,0.00029589,8]
[425034404,1781437855000,-1518.26,0.00029589,8]
[425034397,1781437855000,-749.52,0.00029589,8]
[425034401,1781437855000,-1806.53,0.00029589,8]
[425034383,1781437855000,-567.18,0.00029589,8]
[425034400,1781437855000,-2529.39,0.00029589,8]
[425034416,1781437855000,-500.0,0.00029589,8]
[425034409,1781437855000,-500.0,0.00029589,8]
[425034411,1781437855000,-574.53,0.00029589,8]
[425034398,1781437855000,-500.0,0.00029589,8]
[425034410,1781437855000,-3435.37,0.00029589,8]
[425034408,1781437855000,-1537.37,0.00029589,8]
[425034405,1781437855000,-500.0,0.00029589,8]
[425034394,1781437855000,-1715.79,0.00029589,8]
[425034399,1781437855000,-500.0,0.00029589,8]
[425034402,1781437855000,-658.83,0.00029589,8]
[425034396,1781437855000,-500.0,0.00029589,8]
[425034407,1781437855000,-560.26,0.00029589,8]